[Event "Early-Titled-Tuesday-Blitz-January-23-2024"]
[Site "Chess.com"]
[Date "2024.01.23"]
[Round "4"]
[White "StankovicIvan"]
[Black "alvarorodriguezavila"]
[Result "1-0"]
[WhiteElo "2523"]
[BlackElo "2304"]
[TimeControl "180+1"]
[EndTime "8:38:59 PST"]
[Termination "StankovicIvan won on time"]

1. e4 {[%clk 0:03:00.9]} 1... c5 {[%clk 0:02:59.3]} 2. c4 {[%clk 0:03:00.9]}
2... Nc6 {[%clk 0:02:59.2]} 3. Nc3 {[%clk 0:03:01.3]} 3... g6 {[%clk 0:02:58.3]}
4. g3 {[%clk 0:03:00.7]} 4... Bg7 {[%clk 0:02:58.6]} 5. Bg2 {[%clk 0:02:58.6]}
5... e6 {[%clk 0:02:56.2]} 6. Nge2 {[%clk 0:02:57.9]} 6... Nge7 {[%clk
0:02:56.6]} 7. d3 {[%clk 0:02:57.1]} 7... h5 {[%clk 0:02:54.4]} 8. h3 {[%clk
0:02:55.3]} 8... h4 {[%clk 0:02:54.1]} 9. g4 {[%clk 0:02:55.3]} 9... d5 {[%clk
0:02:53]} 10. e5 {[%clk 0:02:54.2]} 10... dxc4 {[%clk 0:02:46]} 11. dxc4 {[%clk
0:02:54]} 11... Qxd1+ {[%clk 0:02:46.5]} 12. Nxd1 {[%clk 0:02:53.6]} 12... Nxe5
{[%clk 0:02:46.5]} 13. Ne3 {[%clk 0:02:41]} 13... Nd3+ {[%clk 0:02:41.4]} 14.
Kd2 {[%clk 0:02:40.4]} 14... Nb4 {[%clk 0:02:10.6]} 15. a3 {[%clk 0:02:34.9]}
15... Nbc6 {[%clk 0:02:10.9]} 16. Kc2 {[%clk 0:02:30.1]} 16... Nd4+ {[%clk
0:02:04.4]} 17. Nxd4 {[%clk 0:02:30]} 17... cxd4 {[%clk 0:02:04.9]} 18. Nf1
{[%clk 0:02:29]} 18... Nc6 {[%clk 0:02:00.6]} 19. Bd2 {[%clk 0:02:26.3]} 19...
Bd7 {[%clk 0:02:00.7]} 20. Rd1 {[%clk 0:02:22.6]} 20... d3+ {[%clk 0:01:35.6]}
21. Kb1 {[%clk 0:02:19.2]} 21... Ne5 {[%clk 0:01:23.3]} 22. b3 {[%clk
0:02:15.6]} 22... Bc6 {[%clk 0:01:19]} 23. Bxc6+ {[%clk 0:02:11.8]} 23... Nxc6
{[%clk 0:01:19.6]} 24. Bg5 {[%clk 0:02:06.6]} 24... f6 {[%clk 0:01:16.7]} 25.
Be3 {[%clk 0:02:01.7]} 25... O-O-O {[%clk 0:01:15.4]} 26. Nd2 {[%clk 0:01:58.3]}
26... Rd7 {[%clk 0:01:07.1]} 27. Ne4 {[%clk 0:01:46.2]} 27... f5 {[%clk
0:01:04.1]} 28. Nc5 {[%clk 0:01:45]} 28... Rd6 {[%clk 0:00:54.6]} 29. gxf5
{[%clk 0:01:35.4]} 29... gxf5 {[%clk 0:00:48.6]} 30. Rhg1 {[%clk 0:01:19.4]}
30... Bf8 {[%clk 0:00:38.6]} 31. Nxd3 {[%clk 0:01:11.8]} 31... Rd7 {[%clk
0:00:27.9]} 32. b4 {[%clk 0:01:10.6]} 32... Be7 {[%clk 0:00:25.7]} 33. Nf4
{[%clk 0:00:57]} 33... e5 {[%clk 0:00:16.8]} 34. Nd5 {[%clk 0:00:36]} 34... f4
{[%clk 0:00:16.8]} 35. Bxa7 {[%clk 0:00:31]} 35... Bd8 {[%clk 0:00:12.3]} 36.
Bb6 {[%clk 0:00:25.1]} 36... Kb8 {[%clk 0:00:04.9]} 37. b5 {[%clk 0:00:18]}
37... Nd4 {[%clk 0:00:03.9]} 38. Bxd4 {[%clk 0:00:17.4]} 38... exd4 {[%clk
0:00:04.5]} 39. Rxd4 {[%clk 0:00:17.2]} 39... Bc7 {[%clk 0:00:03.5]} 40. Re4
{[%clk 0:00:16]} 40... Bd6 {[%clk 0:00:03.4]} 41. Kb2 {[%clk 0:00:15.5]} 41...
Rc8 {[%clk 0:00:03.9]} 42. Kb3 {[%clk 0:00:15.7]} 42... f3 {[%clk 0:00:03.8]}
43. Rgg4 {[%clk 0:00:16]} 43... Bc5 {[%clk 0:00:03.7]} 44. Rxh4 {[%clk
0:00:16.2]} 44... Bxf2 {[%clk 0:00:04.1]} 45. Rhf4 {[%clk 0:00:16.7]} 45... Rxd5
{[%clk 0:00:02.8]} 46. cxd5 {[%clk 0:00:16.4]} 46... Rc1 {[%clk 0:00:02.6]} 47.
Rxf3 {[%clk 0:00:16.5]} 47... Be1 {[%clk 0:00:03.3]} 48. b6 {[%clk 0:00:16.8]}
1-0

[Event "Early-Titled-Tuesday-Blitz-January-23-2024"]
[Site "Chess.com"]
[Date "2024.01.23"]
[Round "4"]
[White "LevonAronian"]
[Black "Sargsyan_Shant"]
[Result "1-0"]
[WhiteElo "3120"]
[BlackElo "2916"]
[TimeControl "180+1"]
[EndTime "8:39:01 PST"]
[Termination "LevonAronian won by resignation"]

1. e4 {[%clk 0:02:57.4]} 1... g6 {[%clk 0:03:00.1]} 2. d4 {[%clk 0:02:57.3]}
2... Nf6 {[%clk 0:03:00.6]} 3. Bd3 {[%clk 0:02:53.8]} 3... d6 {[%clk 0:02:58.4]}
4. Nf3 {[%clk 0:02:53.5]} 4... Bg7 {[%clk 0:02:58.8]} 5. O-O {[%clk 0:02:53.6]}
5... O-O {[%clk 0:02:59.4]} 6. Re1 {[%clk 0:02:52.9]} 6... Nc6 {[%clk 0:02:56]}
7. h3 {[%clk 0:02:48.5]} 7... e5 {[%clk 0:02:55.6]} 8. c3 {[%clk 0:02:48.6]}
8... Re8 {[%clk 0:02:47.7]} 9. Na3 {[%clk 0:02:46.8]} 9... a6 {[%clk 0:02:46.6]}
10. Nc2 {[%clk 0:02:41.5]} 10... b5 {[%clk 0:02:42.5]} 11. a4 {[%clk 0:02:36.8]}
11... Rb8 {[%clk 0:02:42.9]} 12. axb5 {[%clk 0:02:31]} 12... axb5 {[%clk
0:02:43.8]} 13. d5 {[%clk 0:02:17.5]} 13... Ne7 {[%clk 0:02:44.1]} 14. Nb4
{[%clk 0:02:17.7]} 14... Bd7 {[%clk 0:02:43.5]} 15. Bg5 {[%clk 0:02:11.5]} 15...
h6 {[%clk 0:02:40]} 16. Bxf6 {[%clk 0:02:11.5]} 16... Bxf6 {[%clk 0:02:40.9]}
17. Qe2 {[%clk 0:02:11.9]} 17... c5 {[%clk 0:02:30.3]} 18. dxc6 {[%clk
0:02:11.5]} 18... Nxc6 {[%clk 0:02:30.8]} 19. Nd5 {[%clk 0:02:11.7]} 19... b4
{[%clk 0:02:31.1]} 20. Bb5 {[%clk 0:02:05.4]} 20... bxc3 {[%clk 0:02:24.8]} 21.
bxc3 {[%clk 0:02:05.3]} 21... Kg7 {[%clk 0:02:16]} 22. Red1 {[%clk 0:01:55.5]}
22... h5 {[%clk 0:01:57.9]} 23. c4 {[%clk 0:01:33.8]} 23... Re6 {[%clk
0:01:40.3]} 24. Ra6 {[%clk 0:01:28.5]} 24... Nd4 {[%clk 0:01:10.5]} 25. Nxd4
{[%clk 0:01:22.1]} 25... exd4 {[%clk 0:01:10.8]} 26. Nxf6 {[%clk 0:01:16.3]}
26... Rxf6 {[%clk 0:01:10.7]} 27. Rxd4 {[%clk 0:01:15.5]} 27... Qc7 {[%clk
0:01:11]} 28. e5 {[%clk 0:01:06.6]} 28... Re6 {[%clk 0:01:02.6]} 29. Raxd6
{[%clk 0:01:06.4]} 29... Bc8 {[%clk 0:00:57.5]} 30. Qe3 {[%clk 0:00:56]} 30...
Ra8 {[%clk 0:00:56.7]} 31. Qg5 {[%clk 0:00:49.2]} 31... Qe7 {[%clk 0:00:47.2]}
32. Qxe7 {[%clk 0:00:43.6]} 32... Rxe7 {[%clk 0:00:48.1]} 33. f4 {[%clk
0:00:43.6]} 33... Be6 {[%clk 0:00:41.4]} 34. Bc6 {[%clk 0:00:40.7]} 34... Ra1+
{[%clk 0:00:40]} 35. Kh2 {[%clk 0:00:40.3]} 35... h4 {[%clk 0:00:36.9]} 36. Bd7
{[%clk 0:00:39.1]} 36... Bxd7 {[%clk 0:00:16.8]} 37. Rxd7 {[%clk 0:00:38.9]}
37... Re6 {[%clk 0:00:17.7]} 38. R4d6 {[%clk 0:00:38.8]} 38... Re8 {[%clk
0:00:06.4]} 39. Rf6 {[%clk 0:00:29.1]} 39... Rf8 {[%clk 0:00:06.2]} 40. c5
{[%clk 0:00:26.4]} 40... Rc1 {[%clk 0:00:06.2]} 41. c6 {[%clk 0:00:26]} 41...
Kh6 {[%clk 0:00:05.1]} 42. c7 {[%clk 0:00:21.7]} 42... Kg7 {[%clk 0:00:04.8]}
43. f5 {[%clk 0:00:19.1]} 43... gxf5 {[%clk 0:00:05.7]} 44. Rxf5 {[%clk
0:00:19.3]} 44... Kg6 {[%clk 0:00:06.6]} 45. Rf6+ {[%clk 0:00:19]} 45... Kg7
{[%clk 0:00:07.2]} 46. Rf4 {[%clk 0:00:19.3]} 46... Rc5 {[%clk 0:00:06.2]} 47.
e6 {[%clk 0:00:19]} 1-0

[Event "Early-Titled-Tuesday-Blitz-January-23-2024"]
[Site "Chess.com"]
[Date "2024.01.23"]
[Round "4"]
[White "HanSchut"]
[Black "GiftedThing"]
[Result "1-0"]
[WhiteElo "2264"]
[BlackElo "2415"]
[TimeControl "180+1"]
[EndTime "8:39:02 PST"]
[Termination "HanSchut won by checkmate"]

1. e4 {[%clk 0:02:59.9]} 1... e5 {[%clk 0:02:57.5]} 2. Nf3 {[%clk 0:03:00.1]}
2... Nc6 {[%clk 0:02:58.2]} 3. Bc4 {[%clk 0:03:00.6]} 3... Nf6 {[%clk
0:02:58.5]} 4. d4 {[%clk 0:03:01]} 4... exd4 {[%clk 0:02:55.5]} 5. e5 {[%clk
0:03:01.9]} 5... d5 {[%clk 0:02:56.1]} 6. Bb5 {[%clk 0:03:02.5]} 6... Ne4 {[%clk
0:02:56.7]} 7. Nxd4 {[%clk 0:03:03.1]} 7... Bd7 {[%clk 0:02:56.3]} 8. Bxc6
{[%clk 0:03:03.1]} 8... bxc6 {[%clk 0:02:56.2]} 9. O-O {[%clk 0:03:03.5]} 9...
Bc5 {[%clk 0:02:56.4]} 10. f3 {[%clk 0:03:04.2]} 10... Ng5 {[%clk 0:02:53.6]}
11. Be3 {[%clk 0:03:04.7]} 11... O-O {[%clk 0:02:47.9]} 12. f4 {[%clk
0:03:04.8]} 12... Ne4 {[%clk 0:02:46.4]} 13. Nd2 {[%clk 0:03:05.3]} 13... Nxd2
{[%clk 0:02:42.6]} 14. Qxd2 {[%clk 0:03:06.2]} 14... f6 {[%clk 0:02:43.1]} 15.
Nb3 {[%clk 0:02:55.1]} 15... Bb6 {[%clk 0:02:39]} 16. Qc3 {[%clk 0:02:50.4]}
16... fxe5 {[%clk 0:02:30.2]} 17. fxe5 {[%clk 0:02:50.2]} 17... Qe7 {[%clk
0:02:17.7]} 18. Nc5 {[%clk 0:02:27.9]} 18... Rxf1+ {[%clk 0:01:56.8]} 19. Rxf1
{[%clk 0:02:27]} 19... Re8 {[%clk 0:01:57.7]} 20. Bd4 {[%clk 0:02:21.6]} 20...
h6 {[%clk 0:01:43.9]} 21. b4 {[%clk 0:01:53.3]} 21... Bg4 {[%clk 0:01:14.2]} 22.
a4 {[%clk 0:01:42.9]} 22... Be2 {[%clk 0:00:58.3]} 23. Re1 {[%clk 0:01:24.1]}
23... Bc4 {[%clk 0:00:57.3]} 24. e6 {[%clk 0:01:14.1]} 24... a5 {[%clk
0:00:36.2]} 25. Qe3 {[%clk 0:00:20.5]} 25... axb4 {[%clk 0:00:28.8]} 26. Nd7
{[%clk 0:00:15.1]} 26... Bxd4 {[%clk 0:00:11.4]} 27. Qxd4 {[%clk 0:00:16]} 27...
Qd6 {[%clk 0:00:04.7]} 28. Nc5 {[%clk 0:00:12.6]} 28... Re7 {[%clk 0:00:03.2]}
29. h3 {[%clk 0:00:12.5]} 29... b3 {[%clk 0:00:01.6]} 30. cxb3 {[%clk 0:00:12]}
30... Bxb3 {[%clk 0:00:01.8]} 31. a5 {[%clk 0:00:12.9]} 31... Bc4 {[%clk
0:00:01.6]} 32. a6 {[%clk 0:00:13.6]} 32... Re8 {[%clk 0:00:02]} 33. a7 {[%clk
0:00:14.1]} 33... Qg3 {[%clk 0:00:01.9]} 34. Qe3 {[%clk 0:00:11.6]} 34... Qg6
{[%clk 0:00:01.8]} 35. e7 {[%clk 0:00:11.8]} 35... Qf7 {[%clk 0:00:02]} 36. Nd7
{[%clk 0:00:10]} 36... Qf5 {[%clk 0:00:01.8]} 37. Nb6 {[%clk 0:00:10.1]} 37...
cxb6 {[%clk 0:00:01.5]} 38. Qxb6 {[%clk 0:00:06.9]} 38... Qf7 {[%clk 0:00:02.4]}
39. Qb7 {[%clk 0:00:06.8]} 39... Qf6 {[%clk 0:00:02.4]} 40. a8=Q {[%clk
0:00:07]} 40... Rxa8 {[%clk 0:00:02.6]} 41. Qxa8+ {[%clk 0:00:07.9]} 41... Kh7
{[%clk 0:00:03.2]} 42. e8=Q {[%clk 0:00:08.8]} 42... Qd4+ {[%clk 0:00:03.6]} 43.
Qe3 {[%clk 0:00:08.1]} 43... Qf6 {[%clk 0:00:03.6]} 44. Qae8 {[%clk 0:00:07.1]}
44... c5 {[%clk 0:00:03.1]} 45. Q8e6 {[%clk 0:00:07.2]} 45... Qb2 {[%clk
0:00:02]} 46. Qf5+ {[%clk 0:00:07.4]} 46... Kh8 {[%clk 0:00:01.9]} 47. Qe8#
{[%clk 0:00:07.4]} 1-0

[Event "Early-Titled-Tuesday-Blitz-January-23-2024"]
[Site "Chess.com"]
[Date "2024.01.23"]
[Round "4"]
[White "Ginger_GM"]
[Black "chess_blitz00"]
[Result "1-0"]
[WhiteElo "2684"]
[BlackElo "2462"]
[TimeControl "180+1"]
[EndTime "8:39:03 PST"]
[Termination "Ginger_GM won by resignation"]

1. d4 {[%clk 0:03:00.9]} 1... Nf6 {[%clk 0:02:50.2]} 2. Bg5 {[%clk 0:02:59.5]}
2... e6 {[%clk 0:02:48.5]} 3. Nf3 {[%clk 0:02:57.2]} 3... h6 {[%clk 0:02:47.7]}
4. Bxf6 {[%clk 0:02:52.2]} 4... Qxf6 {[%clk 0:02:48.6]} 5. e4 {[%clk 0:02:51.9]}
5... d6 {[%clk 0:02:46.9]} 6. Nc3 {[%clk 0:02:48.9]} 6... c6 {[%clk 0:02:36.9]}
7. e5 {[%clk 0:02:40.8]} 7... Qg6 {[%clk 0:02:23.2]} 8. h4 {[%clk 0:02:22]} 8...
Be7 {[%clk 0:01:42.9]} 9. Bd3 {[%clk 0:02:07.8]} 9... f5 {[%clk 0:01:29.8]} 10.
exf6 {[%clk 0:02:00.7]} 10... Qxf6 {[%clk 0:01:29.8]} 11. Qe2 {[%clk 0:01:54.2]}
11... Na6 {[%clk 0:01:25.2]} 12. Ne4 {[%clk 0:01:48.7]} 12... Qf4 {[%clk
0:01:15.9]} 13. g3 {[%clk 0:01:42.6]} 13... Qf7 {[%clk 0:01:05.3]} 14. c3 {[%clk
0:01:37.1]} 14... Nc7 {[%clk 0:00:32.8]} 15. Ned2 {[%clk 0:01:21.6]} 15... Bd7
{[%clk 0:00:25.5]} 16. h5 {[%clk 0:01:14.3]} 16... O-O-O {[%clk 0:00:25.6]} 17.
Bg6 {[%clk 0:01:12.8]} 17... Qf8 {[%clk 0:00:21]} 18. O-O-O {[%clk 0:01:10.9]}
18... Be8 {[%clk 0:00:19.2]} 19. Bc2 {[%clk 0:01:02.7]} 19... Bf7 {[%clk
0:00:11.6]} 20. Nh4 {[%clk 0:01:01]} 20... Bxh4 {[%clk 0:00:10.8]} 21. Rxh4
{[%clk 0:01:01]} 21... Qe7 {[%clk 0:00:11.1]} 22. f4 {[%clk 0:00:59.8]} 22...
Rhe8 {[%clk 0:00:10.5]} 23. Re1 {[%clk 0:00:59.7]} 23... Qf6 {[%clk 0:00:09.6]}
24. Kb1 {[%clk 0:00:57.4]} 24... Qe7 {[%clk 0:00:07.4]} 25. Rh3 {[%clk
0:00:54.9]} 25... Qd7 {[%clk 0:00:06.4]} 26. g4 {[%clk 0:00:54.3]} 26... Kb8
{[%clk 0:00:06.6]} 27. Re3 {[%clk 0:00:54]} 27... Nd5 {[%clk 0:00:05.9]} 28. Re4
{[%clk 0:00:53.1]} 28... Nf6 {[%clk 0:00:05.8]} 29. Re3 {[%clk 0:00:52.8]} 29...
Qc7 {[%clk 0:00:05.4]} 30. Ne4 {[%clk 0:00:51.4]} 30... Nxe4 {[%clk 0:00:04.9]}
31. Rxe4 {[%clk 0:00:50.3]} 31... d5 {[%clk 0:00:05.2]} 32. Re5 {[%clk
0:00:50.3]} 32... Bg8 {[%clk 0:00:05.5]} 33. g5 {[%clk 0:00:50]} 33... Rf8
{[%clk 0:00:05.3]} 34. Qg4 {[%clk 0:00:48.2]} 34... hxg5 {[%clk 0:00:05.1]} 35.
fxg5 {[%clk 0:00:44]} 35... Rf2 {[%clk 0:00:04.5]} 36. R5e2 {[%clk 0:00:37.7]}
36... Rdf8 {[%clk 0:00:04.2]} 37. Rxf2 {[%clk 0:00:35.6]} 37... Rxf2 {[%clk
0:00:05.1]} 38. Qh4 {[%clk 0:00:28]} 38... Qh2 {[%clk 0:00:04.4]} 39. Qxh2+
{[%clk 0:00:27.6]} 39... Rxh2 {[%clk 0:00:05.3]} 40. Bg6 {[%clk 0:00:25]} 40...
Kc7 {[%clk 0:00:04.1]} 41. Rf1 {[%clk 0:00:25]} 41... e5 {[%clk 0:00:04.1]} 42.
dxe5 {[%clk 0:00:23.2]} 42... Be6 {[%clk 0:00:04.4]} 43. Bf7 {[%clk 0:00:18.7]}
43... Bg4 {[%clk 0:00:03.7]} 44. h6 {[%clk 0:00:17.4]} 44... gxh6 {[%clk
0:00:04]} 45. g6 {[%clk 0:00:17.9]} 45... Bh5 {[%clk 0:00:01.6]} 46. g7 {[%clk
0:00:17.7]} 46... Bxf7 {[%clk 0:00:01.9]} 47. Rxf7+ {[%clk 0:00:18]} 47... Kb6
{[%clk 0:00:02.5]} 48. g8=Q {[%clk 0:00:18.1]} 48... d4 {[%clk 0:00:03]} 49.
cxd4 {[%clk 0:00:18.1]} 49... Rh1+ {[%clk 0:00:03]} 50. Kc2 {[%clk 0:00:17.9]}
50... Rh2+ {[%clk 0:00:03.9]} 51. Kd3 {[%clk 0:00:18]} 51... Rh3+ {[%clk
0:00:04.8]} 52. Kc4 {[%clk 0:00:18.2]} 52... Ka6 {[%clk 0:00:04.5]} 53. Qc8
{[%clk 0:00:17.8]} 53... Ka5 {[%clk 0:00:03.4]} 54. Qxb7 {[%clk 0:00:16.7]} 1-0

[Event "Early-Titled-Tuesday-Blitz-January-23-2024"]
[Site "Chess.com"]
[Date "2024.01.23"]
[Round "4"]
[White "rezamahdavi2008"]
[Black "Sebastian"]
[Result "1-0"]
[WhiteElo "2852"]
[BlackElo "2993"]
[TimeControl "180+1"]
[EndTime "8:39:04 PST"]
[Termination "rezamahdavi2008 won on time"]

1. e4 {[%clk 0:03:00.9]} 1... c5 {[%clk 0:03:00.6]} 2. Nf3 {[%clk 0:03:01.5]}
2... d6 {[%clk 0:03:01.1]} 3. d4 {[%clk 0:03:02.1]} 3... cxd4 {[%clk 0:03:01.8]}
4. Nxd4 {[%clk 0:03:03]} 4... Nf6 {[%clk 0:03:02.5]} 5. Bd3 {[%clk 0:03:03.7]}
5... Nc6 {[%clk 0:03:00.9]} 6. Be3 {[%clk 0:03:02]} 6... g6 {[%clk 0:02:57.5]}
7. h3 {[%clk 0:03:00.1]} 7... Bg7 {[%clk 0:02:53.5]} 8. c4 {[%clk 0:03:00.2]}
8... Nh5 {[%clk 0:02:40.4]} 9. Be2 {[%clk 0:02:46.2]} 9... Nf4 {[%clk
0:02:39.5]} 10. Bxf4 {[%clk 0:02:33.4]} 10... Bxd4 {[%clk 0:02:28.1]} 11. Nc3
{[%clk 0:02:33.1]} 11... e5 {[%clk 0:02:11.2]} 12. Bg3 {[%clk 0:02:26.7]} 12...
h5 {[%clk 0:02:05]} 13. O-O {[%clk 0:02:23.7]} 13... Be6 {[%clk 0:01:56.7]} 14.
Nd5 {[%clk 0:02:22.3]} 14... Bxd5 {[%clk 0:01:26.7]} 15. cxd5 {[%clk 0:02:21.1]}
15... Ne7 {[%clk 0:01:27.4]} 16. Bh4 {[%clk 0:02:18.4]} 16... a6 {[%clk
0:01:01.1]} 17. Bf6 {[%clk 0:02:12.1]} 17... Rg8 {[%clk 0:00:56.1]} 18. Qd2
{[%clk 0:02:08.2]} 18... Rf8 {[%clk 0:00:44.5]} 19. Rac1 {[%clk 0:02:04.4]}
19... Qd7 {[%clk 0:00:41.4]} 20. Rc2 {[%clk 0:02:02.1]} 20... Ng8 {[%clk
0:00:40.6]} 21. Bg7 {[%clk 0:02:02.2]} 21... Ke7 {[%clk 0:00:40.1]} 22. Qg5+
{[%clk 0:01:54.8]} 22... Ke8 {[%clk 0:00:34.1]} 23. Rfc1 {[%clk 0:01:50.6]}
23... Bb6 {[%clk 0:00:34.7]} 24. Rc3 {[%clk 0:01:27.1]} 24... Bd8 {[%clk
0:00:33.4]} 25. Qe3 {[%clk 0:01:25.2]} 25... Nf6 {[%clk 0:00:31.5]} 26. Bxf6
{[%clk 0:00:59.5]} 26... Bxf6 {[%clk 0:00:31.1]} 27. Rc7 {[%clk 0:00:59.9]}
27... Qd8 {[%clk 0:00:31.8]} 28. Rxb7 {[%clk 0:00:45.6]} 28... Rh8 {[%clk
0:00:24.1]} 29. Rcc7 {[%clk 0:00:40.5]} 29... Rh7 {[%clk 0:00:24.1]} 30. Qf3
{[%clk 0:00:30.4]} 30... Rc8 {[%clk 0:00:20.4]} 31. Rd7 {[%clk 0:00:24.2]} 31...
Rc1+ {[%clk 0:00:20.5]} 32. Kh2 {[%clk 0:00:24.1]} 32... Qxd7 {[%clk 0:00:12.7]}
33. Rxd7 {[%clk 0:00:25]} 33... Bg5 {[%clk 0:00:07.9]} 34. Rxd6 {[%clk
0:00:21.4]} 34... h4 {[%clk 0:00:07.8]} 35. Rc6 {[%clk 0:00:16]} 35... Rb1
{[%clk 0:00:07.3]} 36. Rc2 {[%clk 0:00:14.6]} 36... Bf4+ {[%clk 0:00:07.1]} 37.
g3 {[%clk 0:00:15.2]} 37... hxg3+ {[%clk 0:00:07.6]} 38. fxg3 {[%clk 0:00:16.1]}
38... Bg5 {[%clk 0:00:07.8]} 39. Bxa6 {[%clk 0:00:16.4]} 39... Kf8 {[%clk
0:00:07.8]} 40. d6 {[%clk 0:00:16.5]} 40... Kg7 {[%clk 0:00:07.4]} 41. d7 {[%clk
0:00:13.8]} 41... Rh8 {[%clk 0:00:07.9]} 42. h4 {[%clk 0:00:10.4]} 42... Be7
{[%clk 0:00:04.3]} 43. Bc4 {[%clk 0:00:10.2]} 43... f6 {[%clk 0:00:04.2]} 44.
Bb3 {[%clk 0:00:10.7]} 44... Re1 {[%clk 0:00:01.9]} 45. Qd3 {[%clk 0:00:08.6]}
45... Bd8 {[%clk 0:00:01.2]} 46. Qd5 {[%clk 0:00:08.7]} 46... f5 {[%clk
0:00:01.6]} 47. Qxe5+ {[%clk 0:00:08.6]} 47... Bf6 {[%clk 0:00:01.9]} 48. Qd5
{[%clk 0:00:08.2]} 48... f4 {[%clk 0:00:02.2]} 49. Qf7+ {[%clk 0:00:08.6]} 49...
Kh6 {[%clk 0:00:02.2]} 50. Qxf6 {[%clk 0:00:09.5]} 50... fxg3+ {[%clk
0:00:02.5]} 51. Kxg3 {[%clk 0:00:10.2]} 1-0

[Event "Early-Titled-Tuesday-Blitz-January-23-2024"]
[Site "Chess.com"]
[Date "2024.01.23"]
[Round "4"]
[White "Sanan_Sjugirov"]
[Black "GMSrinath"]
[Result "1-0"]
[WhiteElo "3006"]
[BlackElo "2831"]
[TimeControl "180+1"]
[EndTime "8:39:04 PST"]
[Termination "Sanan_Sjugirov won by resignation"]

1. Nf3 {[%clk 0:03:00.9]} 1... d5 {[%clk 0:02:59]} 2. g3 {[%clk 0:03:01.1]} 2...
g6 {[%clk 0:02:59.4]} 3. Bg2 {[%clk 0:03:00]} 3... Bg7 {[%clk 0:02:59.8]} 4. O-O
{[%clk 0:03:00.6]} 4... e5 {[%clk 0:03:00]} 5. d3 {[%clk 0:03:01]} 5... Ne7
{[%clk 0:03:00.7]} 6. c4 {[%clk 0:02:57.6]} 6... O-O {[%clk 0:03:00.6]} 7. cxd5
{[%clk 0:02:53]} 7... Nxd5 {[%clk 0:03:01.5]} 8. Bg5 {[%clk 0:02:46.7]} 8... Qd6
{[%clk 0:02:54.2]} 9. Nc3 {[%clk 0:02:41.2]} 9... Nxc3 {[%clk 0:02:25.3]} 10.
bxc3 {[%clk 0:02:42.1]} 10... c6 {[%clk 0:02:22.8]} 11. Rb1 {[%clk 0:02:38.5]}
11... Na6 {[%clk 0:02:14.6]} 12. Nd2 {[%clk 0:02:36.9]} 12... Nc5 {[%clk
0:02:13.7]} 13. Qc1 {[%clk 0:02:30.7]} 13... Bg4 {[%clk 0:02:07.7]} 14. Re1
{[%clk 0:02:25.5]} 14... Qd7 {[%clk 0:02:02.9]} 15. Be3 {[%clk 0:02:14.5]} 15...
Na4 {[%clk 0:01:56.4]} 16. Ne4 {[%clk 0:02:02]} 16... b6 {[%clk 0:01:36.7]} 17.
Bh6 {[%clk 0:01:30.8]} 17... Rad8 {[%clk 0:01:25.1]} 18. Bxg7 {[%clk 0:01:08.2]}
18... Kxg7 {[%clk 0:01:26]} 19. Qa3 {[%clk 0:00:31.4]} 19... b5 {[%clk
0:01:01.3]} 20. c4 {[%clk 0:00:27.5]} 20... a6 {[%clk 0:01:00.7]} 21. Qb4 {[%clk
0:00:23.4]} 21... f6 {[%clk 0:00:54]} 22. Nc5 {[%clk 0:00:22.1]} 22... Nxc5
{[%clk 0:00:48.6]} 23. Qxc5 {[%clk 0:00:23]} 23... Rc8 {[%clk 0:00:49.5]} 24. a4
{[%clk 0:00:21]} 24... Be6 {[%clk 0:00:48.2]} 25. Red1 {[%clk 0:00:15.2]} 25...
Rfd8 {[%clk 0:00:35.2]} 26. Rdc1 {[%clk 0:00:14]} 26... Qd4 {[%clk 0:00:18]} 27.
Qe7+ {[%clk 0:00:11.7]} 27... Bf7 {[%clk 0:00:18.6]} 28. axb5 {[%clk 0:00:09.7]}
28... cxb5 {[%clk 0:00:19.5]} 29. cxb5 {[%clk 0:00:09]} 29... axb5 {[%clk
0:00:17.5]} 30. h4 {[%clk 0:00:06.3]} 30... Rxc1+ {[%clk 0:00:12.7]} 31. Rxc1
{[%clk 0:00:07.2]} 31... Qd6 {[%clk 0:00:13.2]} 32. Qa7 {[%clk 0:00:06.5]} 32...
Rd7 {[%clk 0:00:12.2]} 33. Qa5 {[%clk 0:00:05.6]} 33... b4 {[%clk 0:00:12.5]}
34. Rc6 {[%clk 0:00:03.6]} 34... Qe7 {[%clk 0:00:11.5]} 35. Rb6 {[%clk
0:00:02.7]} 35... b3 {[%clk 0:00:12.1]} 36. h5 {[%clk 0:00:02.9]} 36... gxh5
{[%clk 0:00:11]} 37. Qb5 {[%clk 0:00:02.1]} 37... Ra7 {[%clk 0:00:10.9]} 38. Bf3
{[%clk 0:00:02.5]} 38... h4 {[%clk 0:00:10.5]} 39. gxh4 {[%clk 0:00:02.4]} 39...
Qc7 {[%clk 0:00:11.1]} 40. Kg2 {[%clk 0:00:02.4]} 40... Qc1 {[%clk 0:00:07.9]}
41. Qc6 {[%clk 0:00:01.5]} 41... Ra1 {[%clk 0:00:07]} 42. Qxf6+ {[%clk
0:00:01.6]} 1-0